fUSD/lending_fUSD_20260407
["ID","MTS","AMOUNT","RATE_DAILY","PERIOD"]
[420004431,1775604635231,-500.0,0.00015794,2]
[420004432,1775604635241,-500.0,0.00015794,2]
[420004433,1775604635251,-500.0,0.00015794,2]
[420004434,1775604635262,-500.0,0.00015794,2]
[420004435,1775604635272,-500.0,0.00015794,2]
[420004436,1775604635282,-500.0,0.00015794,2]
[420004437,1775604635296,-500.0,0.00015794,2]
[420004438,1775604635306,-500.0,0.00015794,2]
[420004439,1775604635316,-500.0,0.00015794,2]
[420004440,1775604635325,-500.0,0.00015794,2]
[420004441,1775604635336,-500.0,0.00015794,2]
[420004442,1775604635346,-500.0,0.00015794,2]
[420004443,1775604635356,-500.0,0.00015794,2]
[420004444,1775604635367,-500.0,0.00015794,2]
[420004445,1775604635378,-500.0,0.00015794,2]
[420004446,1775604635388,-500.0,0.00015794,2]
[420004447,1775604635399,-500.0,0.00015794,2]
[420004448,1775604635409,-500.0,0.00015794,2]
[420004449,1775604635421,-500.0,0.00015794,2]
[420004450,1775604635434,-500.0,0.00015794,2]
[420004451,1775604635445,-500.0,0.00015794,2]
[420004452,1775604635455,-500.0,0.00015794,2]
[420004453,1775604635465,-500.0,0.00015794,2]
[420004454,1775604635475,-500.0,0.00015794,2]
[420004455,1775604635487,-500.0,0.00015794,2]
[420004456,1775604635498,-500.0,0.00015794,2]
[420004457,1775604635508,-500.0,0.00015794,2]
[420004458,1775604635518,-500.0,0.00015794,2]
[420004459,1775604635528,-500.0,0.00015794,2]
[420004460,1775604635541,-500.0,0.00015794,2]
[420004461,1775604635551,-500.0,0.00015794,2]
[420004462,1775604635562,-619.05705971,0.00015794,2]
[420004463,1775604635572,-1489.89,0.00015794,2]
[420004464,1775604635583,-1489.89,0.00015794,2]
[420004465,1775604635595,-1489.89,0.00015794,2]
[420004466,1775604635606,-1489.89,0.00015794,2]
[420004467,1775604635616,-1489.89,0.00015794,2]
[420004468,1775604635629,-1489.89,0.00015794,2]
[420004469,1775604635639,-626.83,0.00015794,2]
[420004470,1775604635649,-626.83,0.00015794,2]
[420004471,1775604635660,-626.83,0.00015794,2]
[420004472,1775604635670,-626.83,0.00015794,2]
[420004473,1775604636118,-626.83,0.00015794,2]
[420004474,1775604636128,-626.83,0.00015794,2]
[420004475,1775604636138,-500.0,0.00015794,2]
[420004476,1775604636148,-500.0,0.00015794,2]
[420004477,1775604636158,-500.0,0.00015794,2]
[420004478,1775604636167,-500.0,0.00015794,2]
[420004479,1775604636176,-500.0,0.00015794,2]
[420004480,1775604636185,-500.0,0.00015794,2]
[420004481,1775604636195,-500.0,0.00015794,2]
[420004482,1775604636204,-500.0,0.00015794,2]
[420004483,1775604636213,-500.0,0.00015794,2]
[420004484,1775604636223,-500.0,0.00015794,2]
[420004485,1775604636233,-500.0,0.00015794,2]
[420004486,1775604636242,-500.0,0.00015794,2]
[420004487,1775604636252,-500.0,0.00015794,2]
[420004488,1775604636262,-500.0,0.00015794,2]
[420004489,1775604636273,-500.0,0.00015794,2]
[420004490,1775604636284,-500.0,0.00015794,2]
[420004491,1775604636295,-500.0,0.00015794,2]
[420004492,1775604636305,-500.0,0.00015794,2]
[420004493,1775604636315,-500.0,0.00015794,2]
[420004494,1775604636324,-500.0,0.00015794,2]
[420004495,1775604636335,-500.0,0.00015794,2]
[420004496,1775604636345,-500.0,0.00015794,2]
[420004497,1775604636355,-500.0,0.00015794,2]
[420004498,1775604636366,-500.0,0.00015794,2]
[420004499,1775604636376,-778.71037979,0.000158,2]
[420004500,1775604636385,-150.0,0.000158,2]
[420004501,1775604636394,-5000.0,0.000158,2]
[420004502,1775604636404,-200.0,0.000158,5]
[420004503,1775604636413,-831.36463571,0.000158,2]
[420004504,1775604636423,-1897.73628715,0.000158,2]
[420004505,1775604636433,-4421.767,0.00015803,2]
[420004506,1775604636443,-222.126,0.00015803,2]
[420004507,1775604636454,-831.36463571,0.00015811,2]
[420004508,1775604636463,-5347.79604344,0.00015813,2]
[420004509,1775604636473,-600.0,0.00015815,2]
[420004510,1775604636484,-831.36463571,0.00015822,2]
[420004511,1775604636496,-506.0,0.00015831,4]
[420004512,1775604636506,-831.36463571,0.00015833,2]
[420004513,1775604636515,-150.0,0.0001584,2]
[420004514,1775604636525,-500.0,0.0001584,2]
[420004515,1775604636534,-500.0,0.0001584,2]
[420004516,1775604636547,-831.36463571,0.00015844,2]
[420004517,1775604636556,-500.0,0.0001585,2]
[420004518,1775604636567,-831.36463571,0.00015856,2]
[420004519,1775604636577,-166.66,0.00015861,2]
[420004520,1775604636588,-831.36463571,0.00015867,2]
[420004521,1775604636598,-500.0,0.00015872,2]
[420004522,1775604636609,-1244.1901,0.00015873,2]
[420004523,1775604636620,-1339.59694707,0.00015877,2]
[420004524,1775604636630,-831.36463571,0.00015878,2]
[420004525,1775604636641,-150.0,0.00015884,2]
[420004526,1775604636651,-831.36463571,0.00015889,2]
[420004527,1775604636662,-302.34882168,0.0001589,2]
[420004528,1775604636672,-2000.0,0.0001589,2]
[420004529,1775604636682,-500.0,0.00015894,2]
[420004530,1775604636691,-500.0,0.00015894,2]
[420004531,1775604636702,-500.0,0.00015894,2]
[420004532,1775604636713,-500.0,0.00015894,2]
[420004533,1775604636723,-1000.0,0.00015894,2]
[420004534,1775604636734,-500.0,0.00015899,2]
[420004535,1775604636744,-573.83693283,0.00015899,2]
[420004536,1775604636755,-500.0,0.00015899,2]
[420004537,1775604636765,-500.0,0.00015899,2]
[420004538,1775604636775,-500.0,0.00015899,2]
[420004539,1775604636785,-500.0,0.00015899,2]
[420004540,1775604636796,-500.0,0.00015899,2]
[420004541,1775604636805,-500.0,0.00015899,2]
[420004542,1775604636815,-500.0,0.00015899,2]
[420004543,1775604636825,-500.0,0.00015899,2]
[420004544,1775604636835,-500.0,0.00015899,2]
[420004545,1775604636845,-500.0,0.00015899,2]
[420004546,1775604636855,-781.19,0.00015899,2]
[420004547,1775604636864,-781.19,0.00015899,2]
[420004548,1775604636874,-781.19,0.00015899,2]
[420004549,1775604636882,-781.19,0.00015899,2]
[420004550,1775604636891,-781.19,0.00015899,2]
[420004551,1775604636901,-1489.89,0.00015899,2]
[420004552,1775604636911,-500.0,0.00015899,2]
[420004553,1775604636921,-500.0,0.00015899,2]
[420004554,1775604636930,-1138.0,0.000159,5]
[420004555,1775604636939,-1000.0,0.000159,2]
[420004556,1775604636948,-171822.94389952,0.000159,2]
[420004557,1775604636963,-316.11449079,0.000159,2]
[420004558,1775604637017,-1075.43,0.000159,2]
[420004559,1775604637050,-278.52586619,0.000159,2]
[420004560,1775604637062,-1288.30785659,0.000159,2]
[420004783,1775604644109,-672.0,0.00015271,2]
[420004785,1775604644122,-328.0,0.00015271,2]
[420004787,1775604644132,-172.626687,0.00015478,2]
[420004789,1775604644142,-112389.44279815,0.000159,2]
[420004791,1775604644155,-12935.05003534,0.000159,2]
[420004800,1775604644249,-16833.31014481,0.000159,2]
[420004803,1775604644261,-18542.795535,0.000159,2]
[420004809,1775604644320,-673.90952359,0.000159,2]
[420004811,1775604644332,-273.62613258,0.000159,2]
[420004813,1775604644344,-795.0731976,0.000159,2]
[420004815,1775604644356,-2877.64185614,0.000159,2]
[420004817,1775604644368,-17800.45971582,0.000159,2]
[420004819,1775604644381,-6512.67576427,0.000159,2]
[420004841,1775604644586,-8855.20631426,0.000159,2]
[420004843,1775604644598,-8947.21879473,0.000159,2]
[420004845,1775604644611,-8943.78386462,0.000159,2]
[420004847,1775604644623,-9077.54866152,0.000159,2]
[420004849,1775604644636,-2889.635214,0.000159,2]
[420004852,1775604644649,-640089.12559258,0.000159,2]
[420004859,1775604644717,-37181.4234862,0.000159,2]
[420004888,1775604645001,-359.645,0.00015876,2]
[420004920,1775604645323,-640.355,0.00015876,2]
[420004922,1775604645333,-1000.0,0.0001589,2]
[420004924,1775604645343,-913.29970399,0.000159,2]
[420004931,1775604645403,-969.47273923,0.00015842,2]
[420004974,1775604645808,-30.52726077,0.00015842,2]
[420004976,1775604645818,-150.0,0.00015872,2]
[420004979,1775604645829,-10484.13978376,0.000159,2]
[420004981,1775604645841,-73210.98936795,0.000159,2]
[420004983,1775604645850,-5347.79604344,0.000159,2]
[420004985,1775604645860,-200.0,0.000159,5]
[420004987,1775604645870,-831.36463571,0.000159,2]
[420004989,1775604645879,-210.99779365,0.000159,2]
[420004991,1775604645888,-12944.63224785,0.000159,2]
[420004993,1775604645899,-523.0,0.0001593,2]
[420004995,1775604645909,-300.0,0.0001593,2]
[420004997,1775604645919,-985.75,0.00015943,2]
[420004999,1775604645928,-250.0,0.00015945,2]
[420005031,1775604646237,-626.83,0.00015966,2]
[420005035,1775604646271,-500.0,0.00015966,2]
[420005037,1775604646282,-846.05092097,0.00015967,2]
[420005039,1775604646291,-1000.0,0.00015972,2]
[420005041,1775604646304,-500.0,0.00015973,2]
[420005043,1775604646314,-500.0,0.00015973,2]
[420005044,1775604646324,-500.0,0.00015973,2]
[420005046,1775604646334,-500.0,0.00015973,2]
[420005049,1775604646345,-500.0,0.00015973,2]
[420005051,1775604646356,-500.0,0.00015973,2]
[420005053,1775604646366,-500.0,0.00015973,2]
[420005055,1775604646378,-500.0,0.00015973,2]
[420005056,1775604646389,-500.0,0.00015973,2]
[420005058,1775604646399,-500.0,0.00015973,2]
[420005060,1775604646411,-500.0,0.00015973,2]
[420005062,1775604646424,-500.0,0.00015973,2]
[420005064,1775604646435,-500.0,0.00015973,2]
[420005066,1775604646445,-500.0,0.00015973,2]
[420005068,1775604646457,-500.0,0.00015973,2]
[420005070,1775604646467,-500.0,0.00015973,2]
[420005072,1775604646477,-500.0,0.00015973,2]
[420005074,1775604646488,-500.0,0.00015973,2]
[420005076,1775604646498,-500.0,0.00015973,2]
[420005079,1775604646510,-500.0,0.00015973,2]
[420005080,1775604646520,-500.0,0.00015973,2]
[420005082,1775604646530,-500.0,0.00015973,2]
[420005084,1775604646541,-500.0,0.00015973,2]
[420005086,1775604646553,-500.0,0.00015973,2]
[420005089,1775604646564,-500.0,0.00015973,2]
[420005091,1775604646574,-508.06532933,0.00015973,2]
[420005093,1775604646584,-500.0,0.00015973,2]
[420005095,1775604646594,-500.0,0.00015973,2]
[420005097,1775604646605,-500.0,0.00015983,2]
[420005099,1775604646615,-500.0,0.00015983,2]
[420005101,1775604646625,-500.0,0.00015983,2]
[420005103,1775604646635,-507.07,0.00015983,2]
[420005105,1775604646646,-507.07,0.00015983,2]
[420005107,1775604646655,-500.0,0.00015983,2]
[420005109,1775604646665,-500.0,0.00015983,2]
[420005111,1775604646675,-396.18600857,0.00015983,2]
[420005113,1775604646684,-500.0,0.00015983,2]
[420005115,1775604646694,-500.0,0.00015983,2]
[420005117,1775604646705,-500.0,0.00015983,2]
[420005119,1775604646715,-500.0,0.00015983,2]
[420005121,1775604646726,-500.0,0.00015983,2]
[420005123,1775604646736,-500.0,0.00015983,2]
[420005125,1775604646746,-500.0,0.00015983,2]
[420005127,1775604646757,-500.0,0.00015983,2]
[420005129,1775604646767,-781.19,0.00015983,2]
[420005131,1775604646776,-781.19,0.00015983,2]
[420005133,1775604646786,-781.19,0.00015983,2]
[420005135,1775604646798,-500.0,0.00015983,2]
[420005137,1775604646808,-500.0,0.00015983,2]
[420005138,1775604646818,-500.0,0.00015983,2]
[420005140,1775604646829,-500.0,0.00015983,2]
[420005142,1775604646840,-500.0,0.00015983,2]
[420005144,1775604646851,-500.0,0.00015983,2]
[420005146,1775604646861,-500.0,0.00015983,2]
[420005148,1775604646872,-500.0,0.00015983,2]
[420005150,1775604646883,-899.42,0.00015983,2]
[420005152,1775604646893,-899.42,0.00015983,2]
[420005154,1775604646903,-117297.18709114,0.00015984,2]
[420005157,1775604646916,-7875.853944,0.00015984,2]
[420005159,1775604646927,-346863.41900376,0.00015984,2]
[420005161,1775604646937,-3033.3573924,0.00015984,2]
[420005163,1775604646948,-8136.1248438,0.00015984,2]
[420005165,1775604646957,-6825.0541327,0.00015984,2]
[420005167,1775604646967,-302.34882168,0.0001599,2]
[420005169,1775604646977,-302.34882168,0.0001599,2]
[420005171,1775604646987,-151.0,0.00015997,2]
[420005173,1775604646997,-626.83,0.00015998,2]
[420005175,1775604647008,-500.0,0.00015998,2]
[420005177,1775604647018,-666.0,0.00015999,2]
[420005179,1775604647028,-666.0,0.00015999,2]
[420005181,1775604647039,-666.0,0.00015999,2]
[420005183,1775604647051,-500.0,0.00015999,2]
[420005185,1775604647061,-489.378,0.00015999,2]
[420005187,1775604647071,-500.0,0.00015999,2]
[420005189,1775604647081,-518.75523557,0.00015999,2]
[420005191,1775604647091,-500.0,0.00015999,2]
[420005193,1775604647100,-500.0,0.00015999,2]
[420005195,1775604647111,-500.0,0.00015999,2]
[420005196,1775604647121,-500.0,0.00015999,2]
[420005198,1775604647131,-331.94307882,0.00015999,2]
[420005200,1775604647142,-500.0,0.00015999,2]
[420005202,1775604647151,-500.0,0.00015999,2]
[420005204,1775604647161,-500.0,0.00015999,2]
[420005206,1775604647171,-500.0,0.00015999,2]
[420005208,1775604647181,-500.0,0.00015999,2]
[420005210,1775604647191,-500.0,0.00015999,2]
[420005212,1775604647200,-500.0,0.00015999,2]
[420005214,1775604647210,-500.0,0.00015999,2]
[420005216,1775604647220,-500.0,0.00015999,2]
[420005218,1775604647231,-437.55127796,0.00015999,2]
[420005220,1775604647242,-500.0,0.00015999,2]
[420005223,1775604647252,-558.10960232,0.00015999,2]
[420005225,1775604647263,-507.07,0.00015999,2]
[420005227,1775604647273,-507.07,0.00015999,2]
[420005229,1775604647284,-507.07,0.00015999,2]
[420005231,1775604647295,-507.07,0.00015999,2]
[420005232,1775604647306,-507.07,0.00015999,2]
[420005234,1775604647317,-507.07,0.00015999,2]
[420005236,1775604647327,-507.07,0.00015999,2]
[420005238,1775604647336,-507.07,0.00015999,2]
[420005240,1775604647346,-507.07,0.00015999,2]
[420005242,1775604647357,-507.07,0.00015999,2]
[420005244,1775604647367,-507.07,0.00015999,2]
[420005246,1775604647377,-507.07,0.00015999,2]
[420005248,1775604647386,-507.07,0.00015999,2]
[420005250,1775604647396,-507.07,0.00015999,2]
[420005252,1775604647406,-507.07,0.00015999,2]
[420005254,1775604647417,-507.07,0.00015999,2]
[420005256,1775604647428,-507.07,0.00015999,2]
[420005258,1775604647438,-507.07,0.00015999,2]
[420005259,1775604647450,-507.07,0.00015999,2]
[420005260,1775604647460,-507.07,0.00015999,2]
[420005261,1775604647470,-507.07,0.00015999,2]
[420005262,1775604647480,-507.10053324,0.00015999,2]
[420005263,1775604647491,-153.0000009,0.00015999,2]
[420005264,1775604647501,-500.0,0.00015999,2]
[420005265,1775604647511,-500.0,0.00015999,2]
[420005266,1775604647520,-500.0,0.00015999,2]
[420005267,1775604647530,-500.0,0.00015999,2]
[420005268,1775604647540,-500.0,0.00015999,2]
[420005269,1775604647551,-500.0,0.00015999,2]
[420005270,1775604647562,-500.0,0.00015999,2]
[420005271,1775604647572,-500.0,0.00015999,2]
[420005272,1775604647582,-500.0,0.00015999,2]
[420005273,1775604647591,-500.0,0.00015999,2]
[420005274,1775604647601,-500.0,0.00015999,2]
[420005275,1775604647610,-500.0,0.00015999,2]
[420005276,1775604647620,-500.0,0.00015999,2]
[420005277,1775604647630,-500.0,0.00015999,2]
[420005278,1775604647640,-500.0,0.00015999,2]
[420005280,1775604647649,-500.0,0.00015999,2]
[420005282,1775604647658,-271.65524399,0.00015999,2]
[420005284,1775604647667,-500.0,0.00015999,2]
[420005286,1775604647676,-220.46733648,0.00015999,2]
[420005288,1775604647686,-500.0,0.00015999,2]
[420005289,1775604647695,-500.0,0.00015999,2]
[420005291,1775604647704,-500.0,0.00015999,2]
[420005293,1775604647715,-500.0,0.00015999,2]
[420005295,1775604647725,-500.0,0.00015999,2]
[420005297,1775604647735,-500.0,0.00015999,2]
[420005299,1775604647745,-500.0,0.00015999,2]
[420005301,1775604647755,-500.0,0.00015999,2]
[420005303,1775604647765,-500.0,0.00015999,2]
[420005305,1775604647775,-500.0,0.00015999,2]
[420005307,1775604647784,-500.0,0.00015999,2]
[420005309,1775604647794,-500.0,0.00015999,2]
[420005311,1775604647807,-500.0,0.00015999,2]
[420005313,1775604647818,-500.0,0.00015999,2]
[420005315,1775604647829,-500.0,0.00015999,2]
[420005317,1775604647839,-500.0,0.00015999,2]
[420005319,1775604647849,-500.0,0.00015999,2]
[420005321,1775604647858,-214.03,0.00015999,2]
[420005323,1775604647869,-781.19,0.00015999,2]
[420005325,1775604647879,-781.19,0.00015999,2]
[420005327,1775604647891,-781.19,0.00015999,2]
[420005329,1775604647901,-781.19,0.00015999,2]
[420005331,1775604647910,-781.19,0.00015999,2]
[420005333,1775604647920,-781.19,0.00015999,2]
[420005335,1775604647929,-781.19,0.00015999,2]
[420005337,1775604647939,-781.19,0.00015999,2]
[420005339,1775604647949,-781.19,0.00015999,2]
[420005341,1775604647958,-781.19,0.00015999,2]
[420005343,1775604647967,-781.19,0.00015999,2]
[420005344,1775604647976,-781.19,0.00015999,2]
[420005346,1775604647986,-781.19,0.00015999,2]
[420005348,1775604647996,-781.19,0.00015999,2]
[420005350,1775604648006,-781.19,0.00015999,2]
[420005352,1775604648016,-781.27601137,0.00015999,2]
[420005354,1775604648026,-1489.89,0.00015999,2]
[420005356,1775604648036,-1489.89,0.00015999,2]
[420005358,1775604648046,-1489.89,0.00015999,2]
[420005360,1775604648059,-1489.89,0.00015999,2]
[420005362,1775604648069,-1489.89,0.00015999,2]
[420005364,1775604648080,-1489.89,0.00015999,2]
[420005366,1775604648090,-1489.89,0.00015999,2]
[420005368,1775604648100,-1489.89,0.00015999,2]
[420005370,1775604648110,-1489.89,0.00015999,2]
[420005372,1775604648120,-1489.89,0.00015999,2]
[420005374,1775604648130,-1489.89,0.00015999,2]
[420005376,1775604648140,-1489.89,0.00015999,2]
[420005378,1775604648150,-1489.89,0.00015999,2]
[420005381,1775604648161,-1489.89,0.00015999,2]
[420005383,1775604648171,-1489.89,0.00015999,2]
[420005384,1775604648181,-1489.94849701,0.00015999,2]
[420005386,1775604648191,-626.83,0.00015999,2]
[420005388,1775604648201,-626.83,0.00015999,2]
[420005390,1775604648211,-626.83,0.00015999,2]
[420005392,1775604648221,-626.83,0.00015999,2]
[420005394,1775604648231,-626.83,0.00015999,2]
[420005396,1775604648240,-626.83,0.00015999,2]
[420005398,1775604648250,-626.83,0.00015999,2]
[420005400,1775604648260,-626.83,0.00015999,2]
[420005402,1775604648270,-626.83,0.00015999,2]
[420005404,1775604648280,-626.83,0.00015999,2]
[420005406,1775604648289,-626.83,0.00015999,2]
[420005409,1775604648302,-626.83,0.00015999,2]
[420005411,1775604648312,-626.83,0.00015999,2]
[420005413,1775604648322,-626.85214758,0.00015999,2]
[420005415,1775604648332,-500.0,0.00015999,2]
[420005417,1775604648342,-500.0,0.00015999,2]
[420005419,1775604648352,-500.0,0.00015999,2]
[420005421,1775604648361,-500.0,0.00015999,2]
[420005423,1775604648371,-500.0,0.00015999,2]
[420005425,1775604648382,-236.76950636,0.00015999,2]
[420005426,1775604648391,-500.0,0.00015999,2]
[420005428,1775604648400,-500.0,0.00015999,2]
[420005430,1775604648409,-500.0,0.00015999,2]
[420005432,1775604648419,-500.0,0.00015999,2]
[420005434,1775604648429,-649.53026642,0.00015999,2]
[420005436,1775604648440,-569.21254605,0.00015999,2]
[420005438,1775604648450,-500.0,0.00015999,2]
[420005440,1775604648459,-500.0,0.00015999,2]
[420005442,1775604648469,-500.0,0.00015999,2]
[420005444,1775604648479,-500.0,0.00015999,2]
[420005446,1775604648489,-500.0,0.00015999,2]
[420005448,1775604648499,-500.0,0.00015999,2]
[420005450,1775604648509,-500.0,0.00015999,2]
[420005452,1775604648519,-500.0,0.00015999,2]
[420005454,1775604648529,-500.0,0.00015999,2]
[420005456,1775604648539,-500.0,0.00015999,2]
[420005458,1775604648548,-175.30099318,0.00015999,2]
[420005460,1775604648560,-500.0,0.00015999,2]
[420005462,1775604648569,-500.0,0.00015999,2]
[420005464,1775604648579,-500.0,0.00015999,2]
[420005466,1775604648588,-500.0,0.00015999,2]
[420005468,1775604648598,-500.0,0.00015999,2]
[420005470,1775604648608,-500.0,0.00015999,2]
[420005472,1775604648617,-500.0,0.00015999,2]
[420005474,1775604648627,-500.0,0.00015999,2]
[420005476,1775604648637,-500.0,0.00015999,2]
[420005478,1775604648647,-230.17916673,0.00015999,2]
[420005480,1775604648657,-500.0,0.00015999,2]
[420005482,1775604648666,-500.0,0.00015999,2]
[420005484,1775604648676,-500.0,0.00015999,2]
[420005486,1775604648686,-500.0,0.00015999,2]
[420005488,1775604648695,-500.0,0.00015999,2]
[420005490,1775604648705,-500.0,0.00015999,2]
[420005492,1775604648715,-500.0,0.00015999,2]
[420005494,1775604648724,-500.0,0.00015999,2]
[420005496,1775604648734,-500.0,0.00015999,2]
[420005498,1775604648744,-500.0,0.00015999,2]
[420005500,1775604648755,-500.0,0.00015999,2]
[420005502,1775604648765,-500.0,0.00015999,2]
[420005504,1775604648774,-500.0,0.00015999,2]
[420005506,1775604648784,-500.0,0.00015999,2]
[420005508,1775604648793,-500.0,0.00015999,2]
[420005509,1775604648804,-240.03469433,0.00015999,2]
[420005517,1775604649974,-153.94907903,0.00015741,2]
[420005518,1775604649985,-1000.0,0.00015937,2]
[420005519,1775604649995,-259.96530567,0.00015999,2]
[420005520,1775604650005,-500.0,0.00015999,2]
[420005521,1775604650014,-500.0,0.00015999,2]
[420005522,1775604650023,-320.3298975,0.00015999,2]
[420005523,1775604650033,-178.87590078,0.00015999,2]
[420005524,1775604650046,-720.54409922,0.00015999,2]
[420005525,1775604650060,-899.42,0.00015999,2]
[420005526,1775604650070,-899.42,0.00015999,2]
[420005527,1775604650080,-899.42,0.00015999,2]
[420005528,1775604650089,-899.42,0.00015999,2]
[420005529,1775604650099,-899.42,0.00015999,2]
[420005530,1775604650108,-899.42,0.00015999,2]
[420005531,1775604650118,-24.63453829,0.00015999,2]
[420005537,1775604650468,-874.78546171,0.00015999,2]
[420005538,1775604650478,-899.42,0.00015999,2]
[420005539,1775604650487,-899.42,0.00015999,2]
[420005540,1775604650496,-899.42,0.00015999,2]
[420005541,1775604650505,-899.42,0.00015999,2]
[420005542,1775604650514,-899.42,0.00015999,2]
[420005543,1775604650523,-899.42,0.00015999,2]
[420005544,1775604650532,-899.42,0.00015999,2]
[420005545,1775604650542,-899.42,0.00015999,2]
[420005546,1775604650553,-899.42,0.00015999,2]
[420005547,1775604650563,-899.42,0.00015999,2]
[420005548,1775604650573,-899.42,0.00015999,2]
[420005549,1775604650582,-899.42,0.00015999,2]
[420005550,1775604650592,-899.42,0.00015999,2]
[420005551,1775604650602,-899.43,0.00015999,2]
[420005552,1775604650611,-150.0,0.00015999,2]
[420005553,1775604650621,-150.0,0.00015999,2]
[420005554,1775604650631,-176.66177212,0.00015999,2]
[420005555,1775604650641,-1935.0,0.00016,5]
[420005556,1775604650651,-245.0843554,0.00016,2]
[420005557,1775604650661,-183.96136344,0.00016,2]
[420005558,1775604650671,-150.0,0.00016,2]
[420005559,1775604650681,-152.61372688,0.00016,2]
[420005560,1775604650690,-232.26207746,0.00016,2]
[420005561,1775604650699,-151.22967101,0.00016,2]
[420005562,1775604650709,-181.05044788,0.00016,2]
[420005563,1775604650719,-151.75828689,0.00016,2]
[420005564,1775604650728,-292.77980276,0.00016,2]
[420005565,1775604650737,-364701.27990286,0.00016,2]
[420005566,1775604650748,-794.62507312,0.00016,2]
[420005567,1775604650759,-257.60270356,0.00016,2]
[420005568,1775604650783,-1298.60426272,0.00016,2]
[420005569,1775604650826,-322.8916,0.00016,2]
[420005570,1775604650838,-2560.29589877,0.00016,2]
[420005571,1775604650892,-56170.19246528,0.00016,2]
[420005572,1775604651671,-35516.57741093,0.00016,2]
[420005573,1775604651683,-517.55965814,0.00016,2]
[420005574,1775604651695,-3016.57165071,0.00016,2]
[420005575,1775604651707,-9559.21788676,0.00016,2]
[420005577,1775604682744,355.0,0.000113,5]
[420005582,1775605027624,163.0,0.00011894,2]
[420005583,1775605029416,157.0,0.00011894,2]
[420005584,1775605084779,5533.0,0.00011,5]
[420005585,1775605087222,164.0,0.00011894,2]
[420005586,1775605145934,164.0,0.00011894,2]
[420005594,1775605615044,2825.15,0.00011507,2]
[420005595,1775605636080,5533.0,0.000105,5]
[420005596,1775605666894,1641.86,0.000105,5]
[420005597,1775605666917,3891.14,0.000105,5]
[420006229,1775605832629,-161.0,0.00011894,2]
[420006230,1775605832639,-779.11642928,0.00012904,2]
[420006231,1775605832655,-720.88357072,0.00012904,2]
[420006232,1775605832665,-300.0,0.0001291,2]
[420006233,1775605832675,-1200.0,0.0001291,2]
[420006234,1775605832686,-41766.60994404,0.00012911,2]
[420006235,1775605832748,-8776.84005596,0.00012911,2]
[420006236,1775605832759,-506.0,0.000131,2]
[420006237,1775605832769,-506.0,0.000131,2]
[420006238,1775605832779,-506.0,0.000131,2]
[420006239,1775605832789,-6519.39,0.0001324,2]
[420006240,1775605832800,-167.62,0.00013397,2]
[420006241,1775605832810,-173.09216701,0.00013403,2]
[420006242,1775605832820,-219.77,0.00013503,2]
[420006243,1775605832830,-271.33311911,0.00013511,2]
[420006244,1775605832839,-200.0,0.00013547,2]
[420006245,1775605832849,-150.0,0.00013553,2]